[Event "Titled Tuesday Blitz October 12 2021"]
[White "Keymer, Vincent"]
[Black "Zarnicki, Pablo"]
[WhiteFideId "12940690"]
[BlackFideId "100137"]
[WhiteElo "2524"]
[BlackElo "2467"]
[Result "0-1"]
[Round "04"]
[TimeControl "180+1"]
[Date "2021.10.12"]
[WhiteClock "0:00:03"]
[BlackClock "0:00:09"]

1. Nf3 {[%clk 0:03:00]}  Nf6 {[%clk 0:02:59]} 2. c4 {[%clk 0:03:00]}  e6 {[%clk 0:02:58]} 3. Nc3 {[%clk 0:03:00]}  Bb4 {[%clk 0:02:58]} 4. g4 {[%clk 0:02:57]}  h6 {[%clk 0:02:52]} 5. Qc2 {[%clk 0:02:40]}  d5 {[%clk 0:02:48]} 6. e3 {[%clk 0:02:27]}  Be7 {[%clk 0:02:38]} 7. d4 {[%clk 0:02:07]}  b6 {[%clk 0:02:29]} 8. cxd5 {[%clk 0:01:36]}  exd5 {[%clk 0:02:25]} 9. h3 {[%clk 0:01:36]}  Bb7 {[%clk 0:02:23]} 10. Bd2 {[%clk 0:01:34]}  Nbd7 {[%clk 0:02:15]} 11. Bg2 {[%clk 0:01:33]}  Ne4 {[%clk 0:02:07]} 12. O-O {[%clk 0:01:24]}  O-O {[%clk 0:01:59]} 13. Nxe4 {[%clk 0:01:17]}  dxe4 {[%clk 0:01:59]} 14. Ne5 {[%clk 0:01:18]}  Nxe5 {[%clk 0:01:43]} 15. dxe5 {[%clk 0:01:19]}  c5 {[%clk 0:01:28]} 16. Bc3 {[%clk 0:00:51]}  Qd5 {[%clk 0:01:26]} 17. f4 {[%clk 0:00:46]}  exf3 {[%clk 0:01:15]} 18. Bxf3 {[%clk 0:00:46]}  Qd7 {[%clk 0:01:15]} 19. Qf5 {[%clk 0:00:44]}  Rad8 {[%clk 0:01:00]} 20. e6 {[%clk 0:00:17]}  fxe6 {[%clk 0:00:43]} 21. Qg6 {[%clk 0:00:18]}  Bg5 {[%clk 0:00:37]} 22. Bxb7 {[%clk 0:00:16]}  Qxb7 {[%clk 0:00:32]} 23. Qxe6+ {[%clk 0:00:16]}  Kh7 {[%clk 0:00:30]} 24. e4 {[%clk 0:00:13]}  Rde8 {[%clk 0:00:28]} 25. Qd5 {[%clk 0:00:13]}  Qc7 {[%clk 0:00:22]} 26. e5 {[%clk 0:00:12]}  Rd8 {[%clk 0:00:20]} 27. Qe4+ {[%clk 0:00:12]}  Kg8 {[%clk 0:00:20]} 28. Rxf8+ {[%clk 0:00:10]}  Rxf8 {[%clk 0:00:20]} 29. Rf1 {[%clk 0:00:11]}  Rxf1+ {[%clk 0:00:19]} 30. Kxf1 {[%clk 0:00:12]}  Qd7 {[%clk 0:00:18]} 31. e6 {[%clk 0:00:10]}  Qd1+ {[%clk 0:00:18]} 32. Kg2 {[%clk 0:00:11]}  Be7 {[%clk 0:00:16]} 33. Qf3 {[%clk 0:00:08]}  Qc2+ {[%clk 0:00:15]} 34. Kf1 {[%clk 0:00:06]}  Qb1+ {[%clk 0:00:15]} 35. Kg2 {[%clk 0:00:06]}  Qc2+ {[%clk 0:00:15]} 36. Kg1 {[%clk 0:00:07]}  Qb1+ {[%clk 0:00:14]} 37. Qf1 {[%clk 0:00:07]}  Qxf1+ {[%clk 0:00:13]} 38. Kxf1 {[%clk 0:00:08]}  Kf8 {[%clk 0:00:14]} 39. Ke2 {[%clk 0:00:08]}  Bf6 {[%clk 0:00:13]} 40. Bd2 {[%clk 0:00:04]}  Ke7 {[%clk 0:00:13]} 41. b3 {[%clk 0:00:04]}  Kxe6 {[%clk 0:00:13]} 42. Kd3 {[%clk 0:00:05]}  Kd5 {[%clk 0:00:14]} 43. Bf4 {[%clk 0:00:05]}  b5 {[%clk 0:00:13]} 44. Bb8 {[%clk 0:00:04]}  a6 {[%clk 0:00:13]} 45. Bg3 {[%clk 0:00:02]}  g6 {[%clk 0:00:13]} 46. Bf4 {[%clk 0:00:02]}  h5 {[%clk 0:00:14]} 47. gxh5 {[%clk 0:00:01]}  gxh5 {[%clk 0:00:14]} 48. Bd2 {[%clk 0:00:02]}  Bd4 {[%clk 0:00:14]} 49. Bc1 {[%clk 0:00:02]}  c4+ {[%clk 0:00:14]} 50. bxc4+ {[%clk 0:00:03]}  bxc4+ {[%clk 0:00:15]} 51. Ke2 {[%clk 0:00:04]}  Ke4 {[%clk 0:00:16]} 52. Bh6 {[%clk 0:00:04]}  Be5 {[%clk 0:00:13]} 53. Bc1 {[%clk 0:00:04]}  Bf4 {[%clk 0:00:06]} 54. Bb2 {[%clk 0:00:03]}  Be5 {[%clk 0:00:06]} 55. Ba3 {[%clk 0:00:02]}  Bd4 {[%clk 0:00:06]} 56. Kd2 {[%clk 0:00:02]}  Kf3 {[%clk 0:00:05]} 57. Be7 {[%clk 0:00:02]}  Kg3 {[%clk 0:00:05]} 58. h4 {[%clk 0:00:03]}  Kg4 {[%clk 0:00:06]} 59. Kc2 {[%clk 0:00:03]}  Be5 {[%clk 0:00:06]} 60. Bd8 {[%clk 0:00:03]}  Bg3 {[%clk 0:00:06]} 61. Kc3 {[%clk 0:00:03]}  Bxh4 {[%clk 0:00:07]} 62. Bb6 {[%clk 0:00:03]}  Bg3 {[%clk 0:00:07]} 63. Kxc4 {[%clk 0:00:03]}  h4 {[%clk 0:00:08]} 64. Kd3 {[%clk 0:00:04]}  h3 {[%clk 0:00:09]} 65. Bg1 {[%clk 0:00:04]}  Kf3 {[%clk 0:00:09]} 66. a4 {[%clk 0:00:03]}  Kg2 {[%clk 0:00:09]} 0-1


[Site "https://www.chess.com"]

[Event "Titled Tuesday Blitz October 12 2021"]
[White "Koksik_13"]
[Black "Rasulov, Vugar"]
[BlackFideId "13402390"]
[WhiteElo "2712"]
[BlackElo "2560"]
[Result "1/2-1/2"]
[Round "04"]
[TimeControl "180+1"]
[Date "2021.10.12"]
[WhiteClock "0:00:10"]
[BlackClock "0:00:30"]

1. e4 {[%clk 0:03:00]}  c5 {[%clk 0:02:58]} 2. Nf3 {[%clk 0:03:00]}  d6 {[%clk 0:02:57]} 3. Bb5+ {[%clk 0:03:00]}  Bd7 {[%clk 0:02:55]} 4. Bxd7+ {[%clk 0:03:00]}  Qxd7 {[%clk 0:02:56]} 5. O-O {[%clk 0:03:01]}  Nc6 {[%clk 0:02:56]} 6. c3 {[%clk 0:03:01]}  Nf6 {[%clk 0:02:56]} 7. d4 {[%clk 0:03:01]}  cxd4 {[%clk 0:02:54]} 8. cxd4 {[%clk 0:03:02]}  d5 {[%clk 0:02:53]} 9. e5 {[%clk 0:03:02]}  Ng8 {[%clk 0:02:53]} 10. Nc3 {[%clk 0:03:02]}  e6 {[%clk 0:02:53]} 11. Be3 {[%clk 0:03:01]}  Nge7 {[%clk 0:02:52]} 12. Qd2 {[%clk 0:02:55]}  Nf5 {[%clk 0:02:52]} 13. Ne1 {[%clk 0:02:55]}  Be7 {[%clk 0:02:49]} 14. Kh1 {[%clk 0:02:55]}  O-O {[%clk 0:02:48]} 15. f4 {[%clk 0:02:55]}  f6 {[%clk 0:02:43]} 16. Nf3 {[%clk 0:02:55]}  Rac8 {[%clk 0:02:43]} 17. g4 {[%clk 0:02:54]}  Nxe3 {[%clk 0:02:38]} 18. Qxe3 {[%clk 0:02:55]}  fxe5 {[%clk 0:02:38]} 19. Nxe5 {[%clk 0:02:49]}  Nxe5 {[%clk 0:02:37]} 20. Qxe5 {[%clk 0:02:49]}  Bf6 {[%clk 0:02:34]} 21. Qe3 {[%clk 0:02:49]}  g6 {[%clk 0:02:27]} 22. Rae1 {[%clk 0:02:48]}  Rce8 {[%clk 0:02:25]} 23. g5 {[%clk 0:02:45]}  Bg7 {[%clk 0:02:24]} 24. h4 {[%clk 0:02:40]}  b5 {[%clk 0:02:18]} 25. Kg2 {[%clk 0:02:38]}  b4 {[%clk 0:02:17]} 26. Ne2 {[%clk 0:02:38]}  a5 {[%clk 0:02:13]} 27. Ng3 {[%clk 0:02:37]}  a4 {[%clk 0:02:13]} 28. h5 {[%clk 0:02:38]}  Qa7 {[%clk 0:02:05]} 29. Rd1 {[%clk 0:02:34]}  Qf7 {[%clk 0:01:59]} 30. hxg6 {[%clk 0:02:17]}  Qxg6 {[%clk 0:02:00]} 31. Qd3 {[%clk 0:02:15]}  Rc8 {[%clk 0:01:56]} 32. Qxg6 {[%clk 0:02:11]}  hxg6 {[%clk 0:01:57]} 33. Rd2 {[%clk 0:02:11]}  b3 {[%clk 0:01:54]} 34. axb3 {[%clk 0:02:11]}  axb3 {[%clk 0:01:55]} 35. Kf3 {[%clk 0:02:09]}  Rc2 {[%clk 0:01:49]} 36. Rff2 {[%clk 0:02:05]}  Rfc8 {[%clk 0:01:37]} 37. Nf1 {[%clk 0:02:02]}  Rc1 {[%clk 0:01:32]} 38. Ne3 {[%clk 0:02:00]}  Rh1 {[%clk 0:01:31]} 39. Ng4 {[%clk 0:01:57]}  Rcc1 {[%clk 0:01:25]} 40. Ne5 {[%clk 0:01:43]}  Bxe5 {[%clk 0:01:24]} 41. fxe5 {[%clk 0:01:42]}  Kf7 {[%clk 0:01:20]} 42. Rd3 {[%clk 0:01:35]}  Ke7 {[%clk 0:01:18]} 43. Kg3 {[%clk 0:01:13]}  Rhg1+ {[%clk 0:01:14]} 44. Kh4 {[%clk 0:01:08]}  Rc8 {[%clk 0:01:10]} 45. Rg3 {[%clk 0:01:04]}  Rd1 {[%clk 0:01:08]} 46. Rgf3 {[%clk 0:01:01]}  Rh8+ {[%clk 0:01:01]} 47. Kg3 {[%clk 0:01:01]}  Rg1+ {[%clk 0:00:59]} 48. Rg2 {[%clk 0:01:01]}  Rxg2+ {[%clk 0:00:49]} 49. Kxg2 {[%clk 0:01:02]}  Rh4 {[%clk 0:00:49]} 50. Rd3 {[%clk 0:00:58]}  Kd7 {[%clk 0:00:49]} 51. Kg3 {[%clk 0:00:56]}  Re4 {[%clk 0:00:48]} 52. Rxb3 {[%clk 0:00:53]}  Rxd4 {[%clk 0:00:47]} 53. Rb7+ {[%clk 0:00:53]}  Kc6 {[%clk 0:00:47]} 54. Rg7 {[%clk 0:00:54]}  Re4 {[%clk 0:00:46]} 55. Rxg6 {[%clk 0:00:54]}  Rxe5 {[%clk 0:00:45]} 56. Rg8 {[%clk 0:00:54]}  Kd7 {[%clk 0:00:41]} 57. Kg4 {[%clk 0:00:52]}  d4 {[%clk 0:00:40]} 58. g6 {[%clk 0:00:48]}  Ke7 {[%clk 0:00:27]} 59. g7 {[%clk 0:00:23]}  Kf7 {[%clk 0:00:27]} 60. Rd8 {[%clk 0:00:23]}  Re4+ {[%clk 0:00:27]} 61. Kf3 {[%clk 0:00:18]}  Re3+ {[%clk 0:00:28]} 62. Kf2 {[%clk 0:00:18]}  Kxg7 {[%clk 0:00:27]} 63. Rxd4 {[%clk 0:00:17]}  Rb3 {[%clk 0:00:28]} 64. Rd2 {[%clk 0:00:17]}  Kf6 {[%clk 0:00:28]} 65. Ke2 {[%clk 0:00:16]}  e5 {[%clk 0:00:28]} 66. Rc2 {[%clk 0:00:16]}  Kf5 {[%clk 0:00:28]} 67. Rc4 {[%clk 0:00:16]}  Rxb2+ {[%clk 0:00:26]} 68. Ke3 {[%clk 0:00:16]}  Rb3+ {[%clk 0:00:26]} 69. Ke2 {[%clk 0:00:16]}  Rh3 {[%clk 0:00:27]} 70. Ra4 {[%clk 0:00:16]}  Rg3 {[%clk 0:00:27]} 71. Rb4 {[%clk 0:00:16]}  Ra3 {[%clk 0:00:26]} 72. Rc4 {[%clk 0:00:16]}  e4 {[%clk 0:00:26]} 73. Rc8 {[%clk 0:00:15]}  Ra6 {[%clk 0:00:25]} 74. Rf8+ {[%clk 0:00:15]}  Rf6 {[%clk 0:00:25]} 75. Rxf6+ {[%clk 0:00:15]}  Kxf6 {[%clk 0:00:26]} 76. Ke3 {[%clk 0:00:16]}  Ke5 {[%clk 0:00:27]} 77. Ke2 {[%clk 0:00:16]}  Kd4 {[%clk 0:00:28]} 78. Kd2 {[%clk 0:00:17]}  e3+ {[%clk 0:00:29]} 79. Ke2 {[%clk 0:00:17]}  Ke4 {[%clk 0:00:29]} 80. Ke1 {[%clk 0:00:10]}  Kf4 {[%clk 0:00:29]} 81. Ke2 {[%clk 0:00:10]}  Ke4 {[%clk 0:00:29]} 82. Ke1 {[%clk 0:00:10]}  Kd3 {[%clk 0:00:29]} 83. Kd1 {[%clk 0:00:10]}  Kd4 {[%clk 0:00:29]} 84. Ke2 {[%clk 0:00:10]}  Ke4 {[%clk 0:00:30]} 1/2-1/2


[Site "https://www.chess.com"]

[Event "Titled Tuesday Blitz October 12 2021"]
[White "Kollars, Dmitrij"]
[Black "Sokolovsky, Yahli"]
[WhiteFideId "12909572"]
[BlackFideId "2820242"]
[WhiteElo "2584"]
[BlackElo "1770"]
[Result "1-0"]
[Round "04"]
[TimeControl "180+1"]
[Date "2021.10.12"]
[WhiteClock "0:01:56"]
[BlackClock "0:01:12"]

1. e4 {[%clk 0:03:00]}  g6 {[%clk 0:02:59]} 2. d4 {[%clk 0:03:00]}  Bg7 {[%clk 0:03:00]} 3. Nc3 {[%clk 0:03:00]}  d6 {[%clk 0:03:00]} 4. Be3 {[%clk 0:03:00]}  a6 {[%clk 0:03:00]} 5. h4 {[%clk 0:03:01]}  h5 {[%clk 0:02:56]} 6. Nh3 {[%clk 0:02:59]}  b5 {[%clk 0:02:56]} 7. Ng5 {[%clk 0:02:57]}  Bb7 {[%clk 0:02:51]} 8. g4 {[%clk 0:02:51]}  hxg4 {[%clk 0:02:41]} 9. Qxg4 {[%clk 0:02:52]}  Nf6 {[%clk 0:02:42]} 10. Qg2 {[%clk 0:02:51]}  e5 {[%clk 0:02:37]} 11. O-O-O {[%clk 0:02:47]}  Qe7 {[%clk 0:02:33]} 12. dxe5 {[%clk 0:02:39]}  dxe5 {[%clk 0:02:34]} 13. Be2 {[%clk 0:02:25]}  Nbd7 {[%clk 0:02:27]} 14. Nd5 {[%clk 0:02:05]}  Nxd5 {[%clk 0:02:26]} 15. exd5 {[%clk 0:02:06]}  Nf6 {[%clk 0:02:19]} 16. Bf3 {[%clk 0:02:03]}  O-O-O {[%clk 0:02:05]} 17. d6 {[%clk 0:02:02]}  Bxf3 {[%clk 0:01:32]} 18. Qxf3 {[%clk 0:02:03]}  Rxd6 {[%clk 0:01:31]} 19. Rxd6 {[%clk 0:01:59]}  e4 {[%clk 0:01:12]} 20. Qh3+ {[%clk 0:01:56]} 1-0


[Site "https://www.chess.com"]

[Event "Titled Tuesday Blitz October 12 2021"]
[White "Lewtak, Damian"]
[Black "Deac, Bogdan-Daniel"]
[WhiteFideId "1141724"]
[BlackFideId "1226380"]
[WhiteElo "2203"]
[BlackElo "2605"]
[Result "0-1"]
[Round "04"]
[TimeControl "180+1"]
[Date "2021.10.12"]
[WhiteClock "0:00:02"]
[BlackClock "0:00:02"]

1. d4 {[%clk 0:03:00]}  Nf6 {[%clk 0:02:59]} 2. c3 {[%clk 0:03:01]}  g6 {[%clk 0:02:56]} 3. Bf4 {[%clk 0:03:02]}  Bg7 {[%clk 0:02:55]} 4. h3 {[%clk 0:03:01]}  d6 {[%clk 0:02:55]} 5. Nd2 {[%clk 0:03:02]}  O-O {[%clk 0:02:55]} 6. e4 {[%clk 0:03:03]}  e5 {[%clk 0:02:45]} 7. dxe5 {[%clk 0:03:04]}  Nh5 {[%clk 0:02:45]} 8. Be3 {[%clk 0:03:04]}  dxe5 {[%clk 0:02:44]} 9. Ngf3 {[%clk 0:03:02]}  Nf4 {[%clk 0:02:40]} 10. Nc4 {[%clk 0:03:00]}  Qe7 {[%clk 0:02:36]} 11. g3 {[%clk 0:02:59]}  Ne6 {[%clk 0:02:25]} 12. Ncxe5 {[%clk 0:02:54]}  Nc5 {[%clk 0:02:24]} 13. Qd5 {[%clk 0:02:50]}  Nba6 {[%clk 0:02:19]} 14. b4 {[%clk 0:02:12]}  Nd7 {[%clk 0:01:48]} 15. Bxa6 {[%clk 0:01:37]}  Nxe5 {[%clk 0:01:38]} 16. Nxe5 {[%clk 0:01:31]}  Qxe5 {[%clk 0:01:26]} 17. Bxb7 {[%clk 0:01:29]}  Qxc3+ {[%clk 0:01:19]} 18. Ke2 {[%clk 0:01:28]}  Be6 {[%clk 0:00:56]} 19. Qc5 {[%clk 0:01:28]}  Qb2+ {[%clk 0:00:38]} 20. Kf3 {[%clk 0:01:28]}  Rab8 {[%clk 0:00:38]} 21. Bd5 {[%clk 0:01:11]}  Rxb4 {[%clk 0:00:24]} 22. Rab1 {[%clk 0:01:00]}  Bxd5 {[%clk 0:00:19]} 23. Qxb4 {[%clk 0:00:42]}  Qf6+ {[%clk 0:00:18]} 24. Kg2 {[%clk 0:00:41]}  Bxa2 {[%clk 0:00:18]} 25. Rbd1 {[%clk 0:00:36]}  Be6 {[%clk 0:00:17]} 26. Bd4 {[%clk 0:00:34]}  Qg5 {[%clk 0:00:17]} 27. Bxg7 {[%clk 0:00:32]}  Kxg7 {[%clk 0:00:17]} 28. Qd4+ {[%clk 0:00:30]}  Kg8 {[%clk 0:00:17]} 29. Qxa7 {[%clk 0:00:29]}  Qe7 {[%clk 0:00:17]} 30. Qd4 {[%clk 0:00:28]}  c5 {[%clk 0:00:16]} 31. Qd6 {[%clk 0:00:27]}  Qb7 {[%clk 0:00:16]} 32. Qxc5 {[%clk 0:00:22]}  Qxe4+ {[%clk 0:00:16]} 33. f3 {[%clk 0:00:22]}  Qe2+ {[%clk 0:00:14]} 34. Qf2 {[%clk 0:00:22]}  Qb5 {[%clk 0:00:14]} 35. Rhe1 {[%clk 0:00:17]}  Rc8 {[%clk 0:00:12]} 36. Rd2 {[%clk 0:00:17]}  Qf5 {[%clk 0:00:12]} 37. g4 {[%clk 0:00:16]}  Qf6 {[%clk 0:00:12]} 38. Qe3 {[%clk 0:00:16]}  Rc3 {[%clk 0:00:10]} 39. Qe4 {[%clk 0:00:14]}  h5 {[%clk 0:00:09]} 40. Red1 {[%clk 0:00:13]}  Kg7 {[%clk 0:00:06]} 41. gxh5 {[%clk 0:00:07]}  Qg5+ {[%clk 0:00:04]} 42. Kf2 {[%clk 0:00:04]}  Rc4 {[%clk 0:00:04]} 43. Rd4 {[%clk 0:00:04]}  Rc3 {[%clk 0:00:02]} 44. R1d2 {[%clk 0:00:02]}  Qxh5 {[%clk 0:00:02]} 45. h4 {[%clk 0:00:02]}  Qc5 {[%clk 0:00:02]} 46. Kg2 {[%clk 0:00:01]}  Rc1 {[%clk 0:00:03]} 47. R4d3 {[%clk 0:00:02]}  Qg1# {[%clk 0:00:02]} 0-1


[Site "https://www.chess.com"]

[Event "Titled Tuesday Blitz October 12 2021"]
[White "Mikhalevski, Victor"]
[Black "Le, Tuan Minh"]
[WhiteFideId "2801914"]
[BlackFideId "12401153"]
[WhiteElo "2577"]
[BlackElo "2450"]
[Result "0-1"]
[Round "04"]
[TimeControl "180+1"]
[Date "2021.10.12"]
[WhiteClock "0:00:02"]
[BlackClock "0:00:13"]

1. Nf3 {[%clk 0:03:00]}  Nf6 {[%clk 0:02:57]} 2. g3 {[%clk 0:03:01]}  d5 {[%clk 0:02:55]} 3. Bg2 {[%clk 0:03:01]}  Bg4 {[%clk 0:02:56]} 4. O-O {[%clk 0:03:02]}  c6 {[%clk 0:02:56]} 5. h3 {[%clk 0:03:02]}  Bh5 {[%clk 0:02:56]} 6. c4 {[%clk 0:03:03]}  e6 {[%clk 0:02:56]} 7. cxd5 {[%clk 0:03:03]}  Bxf3 {[%clk 0:02:56]} 8. Bxf3 {[%clk 0:03:01]}  cxd5 {[%clk 0:02:56]} 9. Qb3 {[%clk 0:02:57]}  Qd7 {[%clk 0:02:55]} 10. d3 {[%clk 0:02:56]}  Nc6 {[%clk 0:02:54]} 11. Bg2 {[%clk 0:02:46]}  Rc8 {[%clk 0:02:52]} 12. Nc3 {[%clk 0:02:46]}  Bd6 {[%clk 0:02:47]} 13. e4 {[%clk 0:02:43]}  dxe4 {[%clk 0:02:37]} 14. dxe4 {[%clk 0:02:40]}  O-O {[%clk 0:02:36]} 15. Rd1 {[%clk 0:02:39]}  Qe7 {[%clk 0:02:36]} 16. Bg5 {[%clk 0:02:20]}  Bc5 {[%clk 0:02:25]} 17. Ne2 {[%clk 0:02:11]}  h6 {[%clk 0:02:20]} 18. Bd2 {[%clk 0:02:06]}  Bb6 {[%clk 0:02:02]} 19. Rac1 {[%clk 0:02:04]}  Rfd8 {[%clk 0:02:02]} 20. Bc3 {[%clk 0:01:59]}  Nd7 {[%clk 0:01:59]} 21. Qa3 {[%clk 0:01:51]}  Qg5 {[%clk 0:01:45]} 22. Bd2 {[%clk 0:01:22]}  Qf6 {[%clk 0:01:45]} 23. Be3 {[%clk 0:01:22]}  Bxe3 {[%clk 0:01:15]} 24. Qxe3 {[%clk 0:01:21]}  Qxb2 {[%clk 0:01:15]} 25. Rb1 {[%clk 0:01:18]}  Qxa2 {[%clk 0:01:15]} 26. Rxb7 {[%clk 0:01:18]}  Nf6 {[%clk 0:01:00]} 27. Rdb1 {[%clk 0:01:08]}  Ne5 {[%clk 0:00:56]} 28. Nf4 {[%clk 0:00:54]}  Rd7 {[%clk 0:00:47]} 29. Bf1 {[%clk 0:00:47]}  Qc2 {[%clk 0:00:36]} 30. R7b4 {[%clk 0:00:39]}  Rc3 {[%clk 0:00:30]} 31. R1b2 {[%clk 0:00:17]}  Qxb2 {[%clk 0:00:15]} 32. Rxb2 {[%clk 0:00:16]}  Rxe3 {[%clk 0:00:16]} 33. fxe3 {[%clk 0:00:16]}  g5 {[%clk 0:00:16]} 34. Ne2 {[%clk 0:00:10]}  Nxe4 {[%clk 0:00:17]} 35. Bg2 {[%clk 0:00:10]}  Rd1+ {[%clk 0:00:13]} 36. Kh2 {[%clk 0:00:10]}  Rd2 {[%clk 0:00:13]} 37. Rxd2 {[%clk 0:00:08]}  Nxd2 {[%clk 0:00:14]} 38. Nc3 {[%clk 0:00:08]}  Ndc4 {[%clk 0:00:13]} 39. e4 {[%clk 0:00:05]}  a5 {[%clk 0:00:13]} 40. Bf1 {[%clk 0:00:05]}  Nb6 {[%clk 0:00:12]} 41. Bb5 {[%clk 0:00:04]}  Kf8 {[%clk 0:00:12]} 42. Kg2 {[%clk 0:00:04]}  Ke7 {[%clk 0:00:13]} 43. Kf2 {[%clk 0:00:04]}  Kd6 {[%clk 0:00:14]} 44. Ke3 {[%clk 0:00:05]}  Kc5 {[%clk 0:00:14]} 45. Be8 {[%clk 0:00:05]}  Kb4 {[%clk 0:00:13]} 46. Nb5 {[%clk 0:00:05]}  Nbc4+ {[%clk 0:00:12]} 47. Kd4 {[%clk 0:00:04]}  a4 {[%clk 0:00:12]} 48. Nc3 {[%clk 0:00:02]}  Nf3+ {[%clk 0:00:13]} 49. Kd3 {[%clk 0:00:02]}  Ne1+ {[%clk 0:00:13]} 50. Kd4 {[%clk 0:00:02]}  e5+ {[%clk 0:00:13]} 0-1


[Site "https://www.chess.com"]

[Event "Titled Tuesday Blitz October 12 2021"]
[White "Nguyen, Ngoc Truong Son"]
[Black "Tang, Andrew"]
[WhiteFideId "12401110"]
[BlackFideId "2059630"]
[WhiteElo "2596"]
[BlackElo "2588"]
[Result "1-0"]
[Round "04"]
[TimeControl "180+1"]
[Date "2021.10.12"]
[WhiteClock "0:02:17"]
[BlackClock "0:01:34"]

1. d4 {[%clk 0:03:00]}  d5 {[%clk 0:02:47]} 2. Nf3 {[%clk 0:03:01]}  e6 {[%clk 0:02:46]} 3. Bf4 {[%clk 0:03:01]}  Nf6 {[%clk 0:02:47]} 4. e3 {[%clk 0:03:01]}  Bd6 {[%clk 0:02:47]} 5. Bd3 {[%clk 0:03:00]}  O-O {[%clk 0:02:44]} 6. Nbd2 {[%clk 0:02:53]}  b6 {[%clk 0:02:43]} 7. Qe2 {[%clk 0:02:50]}  c5 {[%clk 0:02:43]} 8. Bxd6 {[%clk 0:02:44]}  Qxd6 {[%clk 0:02:43]} 9. e4 {[%clk 0:02:41]}  c4 {[%clk 0:02:12]} 10. Bxc4 {[%clk 0:02:41]}  dxc4 {[%clk 0:02:12]} 11. e5 {[%clk 0:02:41]}  Qb4 {[%clk 0:02:12]} 12. exf6 {[%clk 0:02:41]}  Qxb2 {[%clk 0:02:12]} 13. O-O {[%clk 0:02:40]}  Qxc2 {[%clk 0:01:54]} 14. fxg7 {[%clk 0:02:38]}  Rd8 {[%clk 0:01:46]} 15. Ne5 {[%clk 0:02:19]}  Rxd4 {[%clk 0:01:34]} 16. Qf3 {[%clk 0:02:17]} 1-0


[Site "https://www.chess.com"]

[Event "Titled Tuesday Blitz October 12 2021"]
[White "Nogerbek, Kazybek"]
[Black "Karttunen, Mika"]
[WhiteFideId "13710427"]
[BlackFideId "502081"]
[WhiteElo "2436"]
[BlackElo "2343"]
[Result "1-0"]
[Round "04"]
[TimeControl "180+1"]
[Date "2021.10.12"]
[WhiteClock "0:00:12"]
[BlackClock "0:00:14"]

1. d4 {[%clk 0:03:00]}  Nf6 {[%clk 0:02:59]} 2. c4 {[%clk 0:03:00]}  g6 {[%clk 0:02:59]} 3. Nc3 {[%clk 0:03:01]}  d5 {[%clk 0:02:58]} 4. cxd5 {[%clk 0:03:00]}  Nxd5 {[%clk 0:02:59]} 5. e4 {[%clk 0:02:59]}  Nxc3 {[%clk 0:02:58]} 6. bxc3 {[%clk 0:03:00]}  Bg7 {[%clk 0:02:58]} 7. Qa4+ {[%clk 0:02:57]}  Nd7 {[%clk 0:02:48]} 8. Nf3 {[%clk 0:02:57]}  O-O {[%clk 0:02:46]} 9. Be2 {[%clk 0:02:56]}  c5 {[%clk 0:02:32]} 10. O-O {[%clk 0:02:51]}  Qc7 {[%clk 0:02:31]} 11. Qa3 {[%clk 0:02:31]}  e5 {[%clk 0:02:19]} 12. Rd1 {[%clk 0:02:01]}  exd4 {[%clk 0:01:55]} 13. cxd4 {[%clk 0:02:00]}  cxd4 {[%clk 0:01:54]} 14. Bb2 {[%clk 0:01:55]}  Qc5 {[%clk 0:01:29]} 15. Rac1 {[%clk 0:01:36]}  Qxa3 {[%clk 0:01:27]} 16. Bxa3 {[%clk 0:01:37]}  Re8 {[%clk 0:01:26]} 17. Bb5 {[%clk 0:01:38]}  Rxe4 {[%clk 0:01:14]} 18. Rxc8+ {[%clk 0:01:33]}  Rxc8 {[%clk 0:01:13]} 19. Bxd7 {[%clk 0:01:33]}  Rc2 {[%clk 0:01:08]} 20. h3 {[%clk 0:01:21]}  b6 {[%clk 0:00:40]} 21. Bb5 {[%clk 0:01:05]}  Rxa2 {[%clk 0:00:37]} 22. Bd6 {[%clk 0:01:00]}  Rb2 {[%clk 0:00:20]} 23. Bd3 {[%clk 0:00:59]}  Re6 {[%clk 0:00:20]} 24. Bf4 {[%clk 0:00:48]}  a5 {[%clk 0:00:20]} 25. Rc1 {[%clk 0:00:41]}  Re8 {[%clk 0:00:20]} 26. Rc7 {[%clk 0:00:39]}  h6 {[%clk 0:00:20]} 27. Ra7 {[%clk 0:00:28]}  Rc8 {[%clk 0:00:18]} 28. Ne5 {[%clk 0:00:23]}  Bxe5 {[%clk 0:00:17]} 29. Bxe5 {[%clk 0:00:24]}  Rb3 {[%clk 0:00:17]} 30. Bc4 {[%clk 0:00:16]}  Rb4 {[%clk 0:00:15]} 31. Bxf7+ {[%clk 0:00:15]}  Kf8 {[%clk 0:00:15]} 32. Bd6+ {[%clk 0:00:12]}  Kg7 {[%clk 0:00:16]} 33. Be6+ {[%clk 0:00:13]}  Kf6 {[%clk 0:00:16]} 34. Bxc8 {[%clk 0:00:13]}  Rb1+ {[%clk 0:00:16]} 35. Kh2 {[%clk 0:00:13]}  d3 {[%clk 0:00:16]} 36. Bf4 {[%clk 0:00:13]}  g5 {[%clk 0:00:16]} 37. Be3 {[%clk 0:00:14]}  Re1 {[%clk 0:00:16]} 38. Ba6 {[%clk 0:00:11]}  Rxe3 {[%clk 0:00:14]} 39. fxe3 {[%clk 0:00:12]} 1-0


[Site "https://www.chess.com"]